[Event "Titled Tuesday Blitz July 4 Early 2023"]
[White "Moral Garcia, Serafin"]
[Black "Duarte, Leonardo"]
[WhiteFideId "2201925"]
[BlackFideId "110582"]
[WhiteElo "2570"]
[BlackElo "2358"]
[Result "0-1"]
[Round "7"]
[TimeControl "180+2"]
[Date "2023.07.04"]
[WhiteClock "0:00:53"]
[BlackClock "0:00:07"]
[Board "146"]

1. c4 {[%clk 0:02:59]}  Nf6 {[%clk 0:03:00]} 2. Nc3 {[%clk 0:02:58]}  g6 {[%clk 0:03:00]} 3. g3 {[%clk 0:02:57]}  Bg7 {[%clk 0:03:01]} 4. Bg2 {[%clk 0:02:58]}  d6 {[%clk 0:03:02]} 5. d3 {[%clk 0:02:58]}  O-O {[%clk 0:03:03]} 6. Nf3 {[%clk 0:02:58]}  Nc6 {[%clk 0:03:04]} 7. O-O {[%clk 0:02:59]}  e5 {[%clk 0:03:04]} 8. Rb1 {[%clk 0:03:00]}  a5 {[%clk 0:03:05]} 9. a3 {[%clk 0:03:00]}  h6 {[%clk 0:03:03]} 10. b4 {[%clk 0:03:00]}  axb4 {[%clk 0:03:04]} 11. axb4 {[%clk 0:03:01]}  Be6 {[%clk 0:03:05]} 12. b5 {[%clk 0:03:00]}  Ne7 {[%clk 0:03:05]} 13. Bb2 {[%clk 0:03:00]}  c6 {[%clk 0:03:05]} 14. Qb3 {[%clk 0:02:58]}  Qd7 {[%clk 0:03:04]} 15. Nd2 {[%clk 0:02:58]}  Bh3 {[%clk 0:02:58]} 16. Ra1 {[%clk 0:02:56]}  Bxg2 {[%clk 0:02:56]} 17. Kxg2 {[%clk 0:02:57]}  d5 {[%clk 0:02:53]} 18. Rxa8 {[%clk 0:02:48]}  Rxa8 {[%clk 0:02:53]} 19. Ra1 {[%clk 0:02:48]}  Rxa1 {[%clk 0:02:51]} 20. Bxa1 {[%clk 0:02:49]}  h5 {[%clk 0:02:44]} 21. Na4 {[%clk 0:02:35]}  Qc7 {[%clk 0:02:02]} 22. b6 {[%clk 0:02:03]}  Qd6 {[%clk 0:02:01]} 23. c5 {[%clk 0:02:03]}  Qb8 {[%clk 0:02:01]} 24. Nc3 {[%clk 0:01:57]}  Nd7 {[%clk 0:01:59]} 25. Qb4 {[%clk 0:01:56]}  Nf5 {[%clk 0:01:49]} 26. Nb3 {[%clk 0:01:56]}  h4 {[%clk 0:01:38]} 27. e4 {[%clk 0:01:50]}  dxe4 {[%clk 0:00:44]} 28. dxe4 {[%clk 0:01:43]}  Nd4 {[%clk 0:00:42]} 29. Nd1 {[%clk 0:01:22]}  Ne6 {[%clk 0:00:35]} 30. Ne3 {[%clk 0:01:21]}  Bf8 {[%clk 0:00:29]} 31. Nc4 {[%clk 0:01:19]}  Ndxc5 {[%clk 0:00:25]} 32. Bxe5 {[%clk 0:01:16]}  Qd8 {[%clk 0:00:18]} 33. Nxc5 {[%clk 0:01:15]}  Bxc5 {[%clk 0:00:17]} 34. Qb2 {[%clk 0:01:15]}  Qd3 {[%clk 0:00:14]} 35. Nd2 {[%clk 0:01:04]}  Qe2 {[%clk 0:00:12]} 36. Nb3 {[%clk 0:00:54]}  Qxe4+ {[%clk 0:00:11]} 37. f3 {[%clk 0:00:55]}  h3+ {[%clk 0:00:07]} 38. Kxh3 {[%clk 0:00:54]}  Ng5+ {[%clk 0:00:06]} 39. Kg2 {[%clk 0:00:53]}  Qxf3# {[%clk 0:00:07]} 0-1


[Site "https://www.chess.com"]

[Event "Titled Tuesday Blitz July 4 Early 2023"]
[White "Fernandez, Michael"]
[Black "ArtemDyachuk"]
[WhiteFideId "5803560"]
[WhiteElo "2352"]
[BlackElo "2552"]
[Result "1-0"]
[Round "7"]
[TimeControl "180+2"]
[Date "2023.07.04"]
[WhiteClock "0:01:02"]
[BlackClock "0:01:03"]
[Board "147"]

1. c4 {[%clk 0:03:00]}  Nf6 {[%clk 0:02:57]} 2. g3 {[%clk 0:03:00]}  e5 {[%clk 0:02:51]} 3. Bg2 {[%clk 0:02:59]}  d5 {[%clk 0:02:52]} 4. cxd5 {[%clk 0:03:00]}  Nxd5 {[%clk 0:02:52]} 5. Nc3 {[%clk 0:03:01]}  Nb6 {[%clk 0:02:51]} 6. Nf3 {[%clk 0:03:01]}  Nc6 {[%clk 0:02:50]} 7. O-O {[%clk 0:03:01]}  Be7 {[%clk 0:02:45]} 8. d3 {[%clk 0:03:00]}  O-O {[%clk 0:02:38]} 9. a3 {[%clk 0:02:59]}  Be6 {[%clk 0:02:37]} 10. b4 {[%clk 0:02:53]}  f6 {[%clk 0:02:37]} 11. Bb2 {[%clk 0:02:49]}  a5 {[%clk 0:02:35]} 12. b5 {[%clk 0:02:48]}  Nd4 {[%clk 0:02:34]} 13. Nd2 {[%clk 0:02:47]}  a4 {[%clk 0:02:32]} 14. Bxb7 {[%clk 0:02:34]}  Bh3 {[%clk 0:02:27]} 15. Bxa8 {[%clk 0:02:15]}  Qxa8 {[%clk 0:02:27]} 16. e4 {[%clk 0:02:04]}  Bc5 {[%clk 0:02:18]} 17. Ne2 {[%clk 0:01:52]}  Nb3 {[%clk 0:01:56]} 18. Nxb3 {[%clk 0:01:49]}  axb3 {[%clk 0:01:57]} 19. Qxb3+ {[%clk 0:01:48]}  Kh8 {[%clk 0:01:58]} 20. Rfc1 {[%clk 0:01:36]}  Qc8 {[%clk 0:01:57]} 21. Rxc5 {[%clk 0:01:28]}  Qg4 {[%clk 0:01:57]} 22. Qd1 {[%clk 0:01:26]}  f5 {[%clk 0:01:38]} 23. Bxe5 {[%clk 0:01:20]}  fxe4 {[%clk 0:01:34]} 24. Nf4 {[%clk 0:01:19]}  Nd7 {[%clk 0:01:23]} 25. Qxg4 {[%clk 0:01:16]}  Bxg4 {[%clk 0:01:24]} 26. d4 {[%clk 0:01:11]}  Nxc5 {[%clk 0:01:15]} 27. dxc5 {[%clk 0:01:12]}  Rf5 {[%clk 0:01:12]} 28. Bxc7 {[%clk 0:01:05]}  Rxc5 {[%clk 0:01:12]} 29. b6 {[%clk 0:01:05]}  Rb5 {[%clk 0:01:11]} 30. a4 {[%clk 0:01:03]}  Rb2 {[%clk 0:01:10]} 31. a5 {[%clk 0:01:03]}  Bf3 {[%clk 0:01:03]} 32. a6 {[%clk 0:01:02]} 1-0


[Site "https://www.chess.com"]

[Event "Titled Tuesday Blitz July 4 Early 2023"]
[White "Karamsetty, Jeevan"]
[Black "Korpics, Zsolt"]
[WhiteFideId "2025337"]
[BlackFideId "705241"]
[WhiteElo "2516"]
[BlackElo "2351"]
[Result "1-0"]
[Round "7"]
[TimeControl "180+2"]
[Date "2023.07.04"]
[WhiteClock "0:00:04"]
[BlackClock "0:00:04"]
[Board "149"]

1. d4 {[%clk 0:03:00]}  Nf6 {[%clk 0:02:59]} 2. c4 {[%clk 0:02:55]}  e6 {[%clk 0:02:58]} 3. Nc3 {[%clk 0:02:56]}  Bb4 {[%clk 0:02:58]} 4. Nf3 {[%clk 0:02:54]}  O-O {[%clk 0:02:58]} 5. Bd2 {[%clk 0:02:54]}  d5 {[%clk 0:02:55]} 6. cxd5 {[%clk 0:02:54]}  exd5 {[%clk 0:02:56]} 7. e3 {[%clk 0:02:54]}  Bf5 {[%clk 0:02:51]} 8. Be2 {[%clk 0:02:52]}  h6 {[%clk 0:02:51]} 9. O-O {[%clk 0:02:48]}  Nbd7 {[%clk 0:02:49]} 10. Rc1 {[%clk 0:02:43]}  c6 {[%clk 0:02:48]} 11. a3 {[%clk 0:02:42]}  Bd6 {[%clk 0:02:48]} 12. Na4 {[%clk 0:02:39]}  Ne4 {[%clk 0:02:37]} 13. Nc3 {[%clk 0:02:25]}  Ndf6 {[%clk 0:02:33]} 14. Ne1 {[%clk 0:02:17]}  h5 {[%clk 0:01:32]} 15. f4 {[%clk 0:02:10]}  Nxc3 {[%clk 0:01:17]} 16. Bxc3 {[%clk 0:01:59]}  Qe7 {[%clk 0:01:13]} 17. Bd2 {[%clk 0:01:56]}  h4 {[%clk 0:01:09]} 18. Nf3 {[%clk 0:01:50]}  Ne4 {[%clk 0:01:04]} 19. Be1 {[%clk 0:01:46]}  g5 {[%clk 0:00:54]} 20. fxg5 {[%clk 0:01:32]}  Nxg5 {[%clk 0:00:42]} 21. Nxh4 {[%clk 0:01:12]}  Qxe3+ {[%clk 0:00:39]} 22. Kh1 {[%clk 0:00:57]}  Bh7 {[%clk 0:00:19]} 23. Rc3 {[%clk 0:00:41]}  Qe7 {[%clk 0:00:15]} 24. Nf5 {[%clk 0:00:40]}  Bxf5 {[%clk 0:00:11]} 25. Rxf5 {[%clk 0:00:41]}  f6 {[%clk 0:00:11]} 26. Bd2 {[%clk 0:00:34]}  Qh7 {[%clk 0:00:11]} 27. Rxg5+ {[%clk 0:00:18]}  fxg5 {[%clk 0:00:12]} 28. Rh3 {[%clk 0:00:18]}  Qf5 {[%clk 0:00:10]} 29. Bd3 {[%clk 0:00:06]}  Qf6 {[%clk 0:00:09]} 30. Be3 {[%clk 0:00:03]}  Rab8 {[%clk 0:00:09]} 31. Qh5 {[%clk 0:00:03]}  Qg7 {[%clk 0:00:05]} 32. Bh7+ {[%clk 0:00:02]}  Kh8 {[%clk 0:00:04]} 33. Bf5+ {[%clk 0:00:03]}  Kg8 {[%clk 0:00:04]} 34. Be6+ {[%clk 0:00:03]}  Rf7 {[%clk 0:00:05]} 35. Bxf7+ {[%clk 0:00:04]}  Qxf7 {[%clk 0:00:04]} 36. Qh8# {[%clk 0:00:04]} 1-0


[Site "https://www.chess.com"]

[Event "Titled Tuesday Blitz July 4 Early 2023"]
[White "Vifleemskaia, Svetlana"]
[Black "gueraumasague"]
[WhiteFideId "4129490"]
[WhiteElo "2321"]
[BlackElo "2513"]
[Result "0-1"]
[Round "7"]
[TimeControl "180+2"]
[Date "2023.07.04"]
[WhiteClock "0:00:00"]
[BlackClock "0:00:20"]
[Board "154"]

1. d4 {[%clk 0:03:00]}  g6 {[%clk 0:03:00]} 2. c4 {[%clk 0:02:59]}  Bg7 {[%clk 0:03:01]} 3. e4 {[%clk 0:02:59]}  d6 {[%clk 0:03:02]} 4. Nc3 {[%clk 0:02:58]}  Nc6 {[%clk 0:03:03]} 5. Be3 {[%clk 0:02:57]}  e5 {[%clk 0:03:02]} 6. d5 {[%clk 0:02:57]}  Nd4 {[%clk 0:03:02]} 7. Nge2 {[%clk 0:02:57]}  Nxe2 {[%clk 0:03:03]} 8. Bxe2 {[%clk 0:02:57]}  f5 {[%clk 0:03:03]} 9. exf5 {[%clk 0:02:55]}  gxf5 {[%clk 0:03:04]} 10. f4 {[%clk 0:02:55]}  e4 {[%clk 0:02:49]} 11. O-O {[%clk 0:02:45]}  Nf6 {[%clk 0:02:48]} 12. Bh5+ {[%clk 0:02:45]}  Kf8 {[%clk 0:02:48]} 13. Kh1 {[%clk 0:02:42]}  Bd7 {[%clk 0:02:38]} 14. Rc1 {[%clk 0:02:41]}  b6 {[%clk 0:02:35]} 15. Rg1 {[%clk 0:02:36]}  Nxh5 {[%clk 0:02:34]} 16. Qxh5 {[%clk 0:02:35]}  Qe8 {[%clk 0:02:35]} 17. Qxe8+ {[%clk 0:02:18]}  Kxe8 {[%clk 0:02:36]} 18. h3 {[%clk 0:02:16]}  h5 {[%clk 0:02:33]} 19. g3 {[%clk 0:02:13]}  Ke7 {[%clk 0:02:22]} 20. Rc2 {[%clk 0:02:13]}  Bf6 {[%clk 0:02:18]} 21. Ne2 {[%clk 0:02:12]}  Rhg8 {[%clk 0:02:15]} 22. Bd4 {[%clk 0:02:08]}  a5 {[%clk 0:02:12]} 23. Bxf6+ {[%clk 0:02:07]}  Kxf6 {[%clk 0:02:13]} 24. Nd4 {[%clk 0:02:07]}  Rae8 {[%clk 0:02:13]} 25. Re2 {[%clk 0:01:55]}  e3 {[%clk 0:02:03]} 26. Nc2 {[%clk 0:01:38]}  Re4 {[%clk 0:01:59]} 27. b3 {[%clk 0:01:34]}  h4 {[%clk 0:01:44]} 28. Kh2 {[%clk 0:01:26]}  Rge8 {[%clk 0:01:31]} 29. Rge1 {[%clk 0:01:19]}  Rg8 {[%clk 0:01:24]} 30. Rg1 {[%clk 0:01:14]}  b5 {[%clk 0:01:05]} 31. Rxe3 {[%clk 0:01:12]}  bxc4 {[%clk 0:00:57]} 32. Rxe4 {[%clk 0:01:11]}  fxe4 {[%clk 0:00:58]} 33. bxc4 {[%clk 0:00:51]}  hxg3+ {[%clk 0:00:54]} 34. Rxg3 {[%clk 0:00:51]}  Rh8 {[%clk 0:00:53]} 35. Ne3 {[%clk 0:00:42]}  Rh4 {[%clk 0:00:52]} 36. Ng2 {[%clk 0:00:26]}  Rh8 {[%clk 0:00:53]} 37. Ne3 {[%clk 0:00:21]}  Rb8 {[%clk 0:00:53]} 38. Rg2 {[%clk 0:00:15]}  Rb1 {[%clk 0:00:51]} 39. Kg3 {[%clk 0:00:14]}  a4 {[%clk 0:00:48]} 40. Rc2 {[%clk 0:00:06]}  Re1 {[%clk 0:00:31]} 41. Ng2 {[%clk 0:00:06]}  Rh1 {[%clk 0:00:29]} 42. h4 {[%clk 0:00:06]}  Rh3+ {[%clk 0:00:29]} 43. Kf2 {[%clk 0:00:05]}  Kf5 {[%clk 0:00:30]} 44. c5 {[%clk 0:00:05]}  Bb5 {[%clk 0:00:19]} 45. cxd6 {[%clk 0:00:00]}  cxd6 {[%clk 0:00:20]} 0-1


[Site "https://www.chess.com"]

[Event "Titled Tuesday Blitz July 4 Early 2023"]
[White "Cardozo Munar, Carlos Eduardo"]
[Black "Herzog2012"]
[WhiteFideId "4409477"]
[WhiteElo "2319"]
[BlackElo "2478"]
[Result "1-0"]
[Round "7"]
[TimeControl "180+2"]
[Date "2023.07.04"]
[WhiteClock "0:00:25"]
[BlackClock "0:00:01"]
[Board "156"]

1. d4 {[%clk 0:03:00]}  Nf6 {[%clk 0:02:59]} 2. Bg5 {[%clk 0:02:59]}  e6 {[%clk 0:02:58]} 3. e4 {[%clk 0:02:59]}  h6 {[%clk 0:02:58]} 4. Bxf6 {[%clk 0:02:59]}  Qxf6 {[%clk 0:02:58]} 5. c3 {[%clk 0:03:00]}  c5 {[%clk 0:02:57]} 6. Nf3 {[%clk 0:02:58]}  cxd4 {[%clk 0:02:55]} 7. cxd4 {[%clk 0:02:58]}  Bb4+ {[%clk 0:02:51]} 8. Nc3 {[%clk 0:02:58]}  Qg6 {[%clk 0:02:47]} 9. Bd3 {[%clk 0:02:58]}  O-O {[%clk 0:02:20]} 10. O-O {[%clk 0:02:53]}  Nc6 {[%clk 0:02:12]} 11. e5 {[%clk 0:02:49]}  Qh5 {[%clk 0:02:11]} 12. Ne4 {[%clk 0:02:48]}  f5 {[%clk 0:01:40]} 13. exf6 {[%clk 0:02:44]}  gxf6 {[%clk 0:01:40]} 14. a3 {[%clk 0:02:43]}  Be7 {[%clk 0:01:38]} 15. Rc1 {[%clk 0:02:32]}  d5 {[%clk 0:01:21]} 16. Ng3 {[%clk 0:02:31]}  Qf7 {[%clk 0:01:21]} 17. Qd2 {[%clk 0:02:31]}  Kg7 {[%clk 0:01:14]} 18. Rfe1 {[%clk 0:02:27]}  f5 {[%clk 0:01:12]} 19. Rxc6 {[%clk 0:02:20]}  bxc6 {[%clk 0:01:07]} 20. Ne5 {[%clk 0:02:20]}  Qe8 {[%clk 0:01:07]} 21. Qf4 {[%clk 0:02:14]}  Bg5 {[%clk 0:01:06]} 22. Qf3 {[%clk 0:02:12]}  Kh7 {[%clk 0:00:47]} 23. b4 {[%clk 0:02:04]}  a5 {[%clk 0:00:46]} 24. Qe2 {[%clk 0:01:36]}  axb4 {[%clk 0:00:42]} 25. axb4 {[%clk 0:01:36]}  Rb8 {[%clk 0:00:34]} 26. Nf3 {[%clk 0:01:36]}  Qf7 {[%clk 0:00:16]} 27. h4 {[%clk 0:01:36]}  Bf6 {[%clk 0:00:16]} 28. Qd2 {[%clk 0:01:24]}  Qg7 {[%clk 0:00:10]} 29. Nh5 {[%clk 0:01:20]}  Qf7 {[%clk 0:00:09]} 30. Nxf6+ {[%clk 0:01:20]}  Qxf6 {[%clk 0:00:10]} 31. Qc3 {[%clk 0:01:17]}  Bd7 {[%clk 0:00:09]} 32. Ne5 {[%clk 0:01:17]}  Be8 {[%clk 0:00:09]} 33. Nxc6 {[%clk 0:01:07]}  Rc8 {[%clk 0:00:07]} 34. b5 {[%clk 0:01:07]}  Bxc6 {[%clk 0:00:04]} 35. bxc6 {[%clk 0:01:07]}  Rc7 {[%clk 0:00:04]} 36. Qc2 {[%clk 0:01:06]}  Qxd4 {[%clk 0:00:03]} 37. Rxe6 {[%clk 0:01:04]}  Qxh4 {[%clk 0:00:03]} 38. Bxf5+ {[%clk 0:01:03]}  Kh8 {[%clk 0:00:04]} 39. g3 {[%clk 0:00:51]}  Qg5 {[%clk 0:00:03]} 40. Qc3+ {[%clk 0:00:50]}  Qg7 {[%clk 0:00:03]} 41. Rxh6+ {[%clk 0:00:47]}  Kg8 {[%clk 0:00:02]} 42. Be6+ {[%clk 0:00:47]}  Rff7 {[%clk 0:00:02]} 43. Qd2 {[%clk 0:00:35]}  Kf8 {[%clk 0:00:01]} 44. Bxf7 {[%clk 0:00:33]}  Qxf7 {[%clk 0:00:02]} 45. Rh8+ {[%clk 0:00:27]}  Ke7 {[%clk 0:00:01]} 46. Qb4+ {[%clk 0:00:25]}  Ke6 {[%clk 0:00:01]} 47. Rh6+ {[%clk 0:00:25]}  Kf5 {[%clk 0:00:01]} 48. Qf4# {[%clk 0:00:25]} 1-0


[Site "https://www.chess.com"]

[Event "Titled Tuesday Blitz July 4 Early 2023"]
[White "Acikel, Mert"]
[Black "Garcia Almaguer, Juan Manuel"]
[WhiteFideId "12956465"]
[BlackFideId "5110491"]
[WhiteElo "2308"]
[BlackElo "2451"]
[Result "0-1"]
[Round "7"]
[TimeControl "180+2"]
[Date "2023.07.04"]
[WhiteClock "0:00:26"]
[BlackClock "0:01:15"]
[Board "157"]

1. e4 {[%clk 0:02:56]}  e5 {[%clk 0:02:59]} 2. Nf3 {[%clk 0:02:57]}  Nc6 {[%clk 0:03:00]} 3. Bc4 {[%clk 0:02:57]}  Nf6 {[%clk 0:02:58]} 4. d3 {[%clk 0:02:57]}  h6 {[%clk 0:02:56]} 5. c3 {[%clk 0:02:56]}  a6 {[%clk 0:02:55]} 6. O-O {[%clk 0:02:53]}  g5 {[%clk 0:02:54]} 7. a4 {[%clk 0:02:48]}  d6 {[%clk 0:02:45]} 8. Nbd2 {[%clk 0:02:48]}  g4 {[%clk 0:02:43]} 9. Ne1 {[%clk 0:02:48]}  Bg7 {[%clk 0:02:36]} 10. Nc2 {[%clk 0:02:38]}  Be6 {[%clk 0:02:36]} 11. Ne3 {[%clk 0:02:35]}  d5 {[%clk 0:02:34]} 12. exd5 {[%clk 0:02:33]}  Nxd5 {[%clk 0:02:35]} 13. Nxd5 {[%clk 0:02:26]}  Bxd5 {[%clk 0:02:36]} 14. Qe2 {[%clk 0:02:27]}  h5 {[%clk 0:02:33]} 15. Re1 {[%clk 0:02:21]}  Qd7 {[%clk 0:02:30]} 16. Bxd5 {[%clk 0:02:21]}  Qxd5 {[%clk 0:02:30]} 17. Nc4 {[%clk 0:02:02]}  O-O-O {[%clk 0:02:28]} 18. Rd1 {[%clk 0:01:50]}  f5 {[%clk 0:02:27]} 19. Bg5 {[%clk 0:01:45]}  Rd7 {[%clk 0:02:24]} 20. b4 {[%clk 0:01:43]}  h4 {[%clk 0:02:20]} 21. b5 {[%clk 0:01:39]}  Nb8 {[%clk 0:02:20]} 22. Rab1 {[%clk 0:01:29]}  h3 {[%clk 0:02:19]} 23. Ne3 {[%clk 0:01:12]}  Qf7 {[%clk 0:02:11]} 24. g3 {[%clk 0:01:05]}  Qg6 {[%clk 0:02:06]} 25. Bh4 {[%clk 0:01:03]}  Bh6 {[%clk 0:01:48]} 26. Nc4 {[%clk 0:00:56]}  Re8 {[%clk 0:01:28]} 27. Nxe5 {[%clk 0:00:55]}  Qe6 {[%clk 0:01:23]} 28. d4 {[%clk 0:00:56]}  Qd5 {[%clk 0:01:24]} 29. Qf1 {[%clk 0:00:37]}  Rd6 {[%clk 0:01:18]} 30. c4 {[%clk 0:00:36]}  Qe4 {[%clk 0:01:18]} 31. c5 {[%clk 0:00:34]}  Rxd4 {[%clk 0:01:15]} 32. Rd2 {[%clk 0:00:26]} 0-1


[Site "https://www.chess.com"]

[Event "Titled Tuesday Blitz July 4 Early 2023"]
[White "Toncheva, Nadya"]
[Black "Coelho, Ramyres Santana"]
[WhiteFideId "2924056"]
[BlackFideId "2120690"]
[WhiteElo "2448"]
[BlackElo "2301"]
[Result "1-0"]
[Round "7"]
[TimeControl "180+2"]
[Date "2023.07.04"]
[WhiteClock "0:01:28"]
[BlackClock "0:01:37"]
[Board "160"]

1. e4 {[%clk 0:03:00]}  c5 {[%clk 0:02:59]} 2. Nf3 {[%clk 0:02:59]}  d6 {[%clk 0:02:59]} 3. c3 {[%clk 0:03:00]}  Nc6 {[%clk 0:02:59]} 4. d4 {[%clk 0:03:00]}  cxd4 {[%clk 0:03:00]} 5. cxd4 {[%clk 0:03:01]}  Nf6 {[%clk 0:03:00]} 6. Be2 {[%clk 0:02:59]}  e6 {[%clk 0:03:00]} 7. Nc3 {[%clk 0:02:58]}  Be7 {[%clk 0:03:01]} 8. O-O {[%clk 0:02:55]}  O-O {[%clk 0:03:01]} 9. h3 {[%clk 0:02:47]}  b6 {[%clk 0:02:55]} 10. Be3 {[%clk 0:02:45]}  Bb7 {[%clk 0:02:55]} 11. Qd2 {[%clk 0:02:43]}  Rc8 {[%clk 0:02:51]} 12. Rfd1 {[%clk 0:02:42]}  Na5 {[%clk 0:02:51]} 13. e5 {[%clk 0:02:36]}  dxe5 {[%clk 0:02:48]} 14. Nxe5 {[%clk 0:02:34]}  Ne4 {[%clk 0:02:41]} 15. Nxe4 {[%clk 0:02:30]}  Bxe4 {[%clk 0:02:42]} 16. f3 {[%clk 0:01:57]}  Bb7 {[%clk 0:02:38]} 17. Bd3 {[%clk 0:01:56]}  f6 {[%clk 0:02:30]} 18. Ng4 {[%clk 0:01:43]}  Nc4 {[%clk 0:02:26]} 19. Qe2 {[%clk 0:01:37]}  Nxe3 {[%clk 0:02:26]} 20. Qxe3 {[%clk 0:01:37]}  h5 {[%clk 0:02:18]} 21. Qxe6+ {[%clk 0:01:36]}  Kh8 {[%clk 0:02:11]} 22. Qf5 {[%clk 0:01:33]}  Qxd4+ {[%clk 0:02:10]} 23. Kh1 {[%clk 0:01:28]}  Kg8 {[%clk 0:01:47]} 24. Nh6+ {[%clk 0:01:27]}  gxh6 {[%clk 0:01:37]} 25. Qh7# {[%clk 0:01:28]} 1-0


[Site "https://www.chess.com"]

[Event "Titled Tuesday Blitz July 4 Early 2023"]
[White "Legenia, Artem"]
[Black "Gomez Barrera, Javiera Belen"]
[WhiteFideId "14136945"]
[BlackFideId "3418723"]
[WhiteElo "2293"]
[BlackElo "2444"]
[Result "0-1"]
[Round "7"]
[TimeControl "180+2"]
[Date "2023.07.04"]
[WhiteClock "0:00:51"]
[BlackClock "0:00:46"]
[Board "161"]

1. d4 {[%clk 0:03:00]}  Nf6 {[%clk 0:02:57]} 2. Nf3 {[%clk 0:02:59]}  e6 {[%clk 0:02:56]} 3. Bf4 {[%clk 0:02:52]}  d5 {[%clk 0:02:57]} 4. e3 {[%clk 0:02:52]}  c5 {[%clk 0:02:58]} 5. c3 {[%clk 0:02:52]}  Nc6 {[%clk 0:02:59]} 6. Bd3 {[%clk 0:02:51]}  Bd6 {[%clk 0:02:59]} 7. Bxd6 {[%clk 0:02:48]}  Qxd6 {[%clk 0:02:59]} 8. O-O {[%clk 0:02:45]}  e5 {[%clk 0:02:59]} 9. dxe5 {[%clk 0:02:45]}  Nxe5 {[%clk 0:03:00]} 10. Nxe5 {[%clk 0:02:45]}  Qxe5 {[%clk 0:03:00]} 11. Nd2 {[%clk 0:02:46]}  O-O {[%clk 0:03:00]} 12. h3 {[%clk 0:02:43]}  Be6 {[%clk 0:02:53]} 13. Nf3 {[%clk 0:02:37]}  Qh5 {[%clk 0:02:46]} 14. Nd2 {[%clk 0:02:37]}  Qh6 {[%clk 0:02:20]} 15. Qf3 {[%clk 0:02:35]}  Rad8 {[%clk 0:02:18]} 16. Rad1 {[%clk 0:02:33]}  Rfe8 {[%clk 0:02:18]} 17. Rfe1 {[%clk 0:02:32]}  Qh5 {[%clk 0:02:04]} 18. Qxh5 {[%clk 0:02:30]}  Nxh5 {[%clk 0:02:05]} 19. Nf3 {[%clk 0:02:26]}  h6 {[%clk 0:02:03]} 20. Bc2 {[%clk 0:02:13]}  Nf6 {[%clk 0:01:59]} 21. Rd2 {[%clk 0:02:12]}  Kf8 {[%clk 0:01:52]} 22. Red1 {[%clk 0:02:12]}  Rc8 {[%clk 0:01:52]} 23. Bb3 {[%clk 0:02:05]}  b5 {[%clk 0:01:49]} 24. Bc2 {[%clk 0:02:05]}  Ke7 {[%clk 0:01:48]} 25. Re1 {[%clk 0:02:04]}  Red8 {[%clk 0:01:47]} 26. a3 {[%clk 0:02:00]}  Ne4 {[%clk 0:01:38]} 27. Rdd1 {[%clk 0:01:54]}  Nd6 {[%clk 0:01:35]} 28. b3 {[%clk 0:01:41]}  a5 {[%clk 0:01:28]} 29. Ne5 {[%clk 0:01:36]}  Kf6 {[%clk 0:01:19]} 30. f4 {[%clk 0:01:35]}  Ne4 {[%clk 0:01:15]} 31. Bxe4 {[%clk 0:01:33]}  dxe4 {[%clk 0:01:16]} 32. Rxd8 {[%clk 0:01:23]}  Rxd8 {[%clk 0:01:17]} 33. Nc6 {[%clk 0:01:23]}  Rd3 {[%clk 0:01:10]} 34. Nxa5 {[%clk 0:01:23]}  Rxc3 {[%clk 0:01:10]} 35. Kf2 {[%clk 0:01:21]}  Bxb3 {[%clk 0:01:09]} 36. Rb1 {[%clk 0:01:16]}  c4 {[%clk 0:01:09]} 37. Nc6 {[%clk 0:01:14]}  Ba4 {[%clk 0:01:01]} 38. Nd4 {[%clk 0:01:14]}  Rxa3 {[%clk 0:00:54]} 39. Nxb5 {[%clk 0:01:14]}  Rb3 {[%clk 0:00:50]} 40. Rxb3 {[%clk 0:01:12]}  cxb3 {[%clk 0:00:50]} 41. Nc3 {[%clk 0:01:12]}  b2 {[%clk 0:00:47]} 42. Nxe4+ {[%clk 0:01:04]}  Ke7 {[%clk 0:00:44]} 43. Nc3 {[%clk 0:01:03]}  Bc2 {[%clk 0:00:44]} 44. Ke1 {[%clk 0:00:52]}  b1=Q+ {[%clk 0:00:44]} 45. Nxb1 {[%clk 0:00:52]}  Bxb1 {[%clk 0:00:45]} 46. Kd2 {[%clk 0:00:53]}  Ke6 {[%clk 0:00:45]} 47. Kc3 {[%clk 0:00:52]}  Kd5 {[%clk 0:00:45]} 48. g3 {[%clk 0:00:51]}  Ke4 {[%clk 0:00:46]} 0-1


[Site "https://www.chess.com"]

[Event "Titled Tuesday Blitz July 4 Early 2023"]
[White "Zaksaite, Salomeja"]
[Black "Manukian, Artak"]
[WhiteFideId "12801496"]
[BlackFideId "13301373"]
[WhiteElo "2292"]
[BlackElo "2440"]
[Result "1-0"]
[Round "7"]
[TimeControl "180+2"]
[Date "2023.07.04"]
[WhiteClock "0:00:06"]
[BlackClock "0:00:00"]
[Board "162"]

1. d4 {[%clk 0:03:00]}  d5 {[%clk 0:02:59]} 2. Nc3 {[%clk 0:03:00]}  c6 {[%clk 0:02:55]} 3. Bf4 {[%clk 0:02:52]}  Bf5 {[%clk 0:02:53]} 4. e3 {[%clk 0:02:51]}  e6 {[%clk 0:02:52]} 5. Nf3 {[%clk 0:02:49]}  Bd6 {[%clk 0:02:51]} 6. Ne5 {[%clk 0:02:48]}  Nf6 {[%clk 0:02:51]} 7. f3 {[%clk 0:02:46]}  O-O {[%clk 0:02:48]} 8. g4 {[%clk 0:02:45]}  Bg6 {[%clk 0:02:39]} 9. h4 {[%clk 0:02:41]}  h5 {[%clk 0:01:58]} 10. Nxg6 {[%clk 0:02:37]}  fxg6 {[%clk 0:01:58]} 11. Bxd6 {[%clk 0:01:29]}  Qxd6 {[%clk 0:01:59]} 12. g5 {[%clk 0:00:56]}  Nfd7 {[%clk 0:01:46]} 13. f4 {[%clk 0:00:55]}  c5 {[%clk 0:01:41]} 14. Bh3 {[%clk 0:00:43]}  Kh7 {[%clk 0:01:15]} 15. O-O {[%clk 0:00:21]}  a6 {[%clk 0:01:01]} 16. Qd2 {[%clk 0:00:20]}  Nc6 {[%clk 0:00:57]} 17. dxc5 {[%clk 0:00:17]}  Nxc5 {[%clk 0:00:51]} 18. e4 {[%clk 0:00:14]}  d4 {[%clk 0:00:45]} 19. e5 {[%clk 0:00:14]}  Qc7 {[%clk 0:00:33]} 20. Ne2 {[%clk 0:00:13]}  Qb6 {[%clk 0:00:23]} 21. Ng3 {[%clk 0:00:09]}  Rad8 {[%clk 0:00:14]} 22. Kh2 {[%clk 0:00:08]}  d3 {[%clk 0:00:10]} 23. c3 {[%clk 0:00:08]}  Na5 {[%clk 0:00:08]} 24. b3 {[%clk 0:00:07]}  Nc6 {[%clk 0:00:07]} 25. Rad1 {[%clk 0:00:07]}  Rd7 {[%clk 0:00:03]} 26. Qe3 {[%clk 0:00:07]}  Rfd8 {[%clk 0:00:03]} 27. Ne4 {[%clk 0:00:07]}  Na4 {[%clk 0:00:02]} 28. Qxb6 {[%clk 0:00:06]}  Nxb6 {[%clk 0:00:03]} 29. Nc5 {[%clk 0:00:06]}  Re7 {[%clk 0:00:00]} 30. Nxe6 {[%clk 0:00:06]} 1-0


[Site "https://www.chess.com"]